Cogmind - Beta 16 @@@ ROGUE MODE // 2025.10.27 @ 13:30:31 Player: AshCrow Result: Destroyed self with Latent Energy Streamer Performance ------------- Evolutions (0) 0 Regions Visited (4) 800 Robots Destroyed (21) 105 Value Destroyed (373) 373 Prototype IDs (23) 460 Alien Tech Used (0) 0 Bonus (307) 307 TOTAL SCORE: 2045 Bonus ------- Follower Combat Kills 7 Aligned with FarCom 300 Cogmind --------- Core Integrity 0/250 Matter 284/300 Energy 88/260 System Corruption 3% Temperature Cool (0) Movement Flying (197) Ox2 Location -9/Mines Parts ------- > --- POWER (1) -------- Light Nuclear Core > --- PROPULSION (2) --- Flight Unit Flight Unit > --- UTILITY (2) ------ Small Battery > --- WEAPON (2) ------- Latent Energy Streamer Light Assault Rifle > --- INVENTORY (5) ---- Flight Unit Flight Unit Medium Storage Unit Small Battery (100) High-capacity Battery (250) Peak State ------------ > --- POWER ------------ Light Nuclear Core > --- PROPULSION ------- Flight Unit Flight Unit > --- UTILITY ---------- Medium Storage Unit Core Shielding > --- WEAPON ----------- Latent Energy Streamer Light Assault Rifle > --- INVENTORY -------- Flight Unit Flight Unit Small Battery Small Battery High-capacity Battery [Rating: 18] Favorites ----------- Power Light Nuclear Core Engine Light Ion Engine Power Core Light Nuclear Core Propulsion Flight Unit Treads Light Treads Flight Unit Flight Unit Utility Core Shielding Storage Small Storage Unit Protection Core Shielding Weapon Light Assault Rifle Energy Gun Small Laser Energy Cannon Latent Energy Streamer Ballistic Gun Light Assault Rifle Special Weapon Mining Laser Build | -11 -10 -10 -10 -9 ------- Run | Yrd Mat Min Exi Min Slots Evolved . | . . . . . Power . | . . . . . Propulsion . | . . . . . Utility . | . . . . . Weapon . | . . . . . Parts Attached 24 | 7 1 13 2 1 Power 3 | 1 . 2 . . Engine 1 | 1 . . . . Core 2 | . . 2 . . Reactor . | . . . . . Propulsion 6 | 2 . 4 . . Treads 2 | 2 . . . . Leg . | . . . . . Wheel . | . . . . . Hover . | . . . . . Flight 4 | . . 4 . . Utility 7 | 2 . 3 1 1 Device . | . . . . . Storage 5 | 2 . 1 1 1 Processor . | . . . . . Hackware . | . . . . . Protection 2 | . . 2 . . Artifact . | . . . . . Weapon 8 | 2 1 4 1 . Energy Gun 2 | 1 . 1 . . Energy Cannon 1 | . . . 1 . Ballistic Gun 4 | 1 1 2 . . Ballistic Cannon . | . . . . . Launcher . | . . . . . Special Weapon 1 | . . 1 . . Impact Weapon . | . . . . . Slashing Weapon . | . . . . . Piercing Weapon . | . . . . . Special Melee Weapon . | . . . . . Unidentified Prototypes . | . . . . . Parts Lost 6 | . . 5 . 1 Power 1 | . . 1 . . Propulsion 3 | . . 3 . . Utility 1 | . . . . 1 Weapon 1 | . . 1 . . Highest Loss Streak 2 | . . 2 . 1 To Critical Strikes . | . . . . . Average Backups 5 | 1 3 5 5 5 Power . | . 1 . . . Propulsion 1 | . . 1 2 2 Utility 1 | . . 2 2 3 Weapon 1 | . 1 1 1 . Tool/Special . | . . . . . Unused Backups 10 | . . 5 1 4 Power 1 | . . 1 . . Propulsion 4 | . . 2 . 2 Utility 4 | . . 1 1 2 Weapon 1 | . . 1 . . Tool/Special . | . . . . . Average Slot Usage (%) 83 | . 100 83 80 100 Engine 1 | . 14 1 . . Core 12 | . . 12 14 14 Treads 5 | . 28 6 . . Flight 20 | . . 16 28 28 Storage 6 | . 28 7 1 14 Protection 12 | . . 12 14 14 Energy Gun 9 | . 14 10 7 . Ballistic Gun 13 | . 14 12 14 14 Special Weapon 1 | . . 2 . . Peak Build Rating 18 | 7 7 9 17 18 Average Rating 7 | 5 7 8 8 18 On Entrance 6 | . 7 7 8 9 Avg Prop Armor Cover (%) . | . . . . . Naked Turns . | . . . . . Heaviest Build 17 | 12 12 16 17 . Greatest Support 40 | 40 40 40 8 . Greatest Overweight (x) 4 | . . 4 2 . Average Overweight (x) . | . . . . . Largest Inventory Capacity 20 | 8 8 20 10 10 Average Capacity 6 | 7 8 6 5 6 Most Carried 8 | 2 5 8 6 5 Average Carried 5 | 1 3 5 5 5 Final Capacity 10 | 8 8 5 10 5 Final Carried 6 | 2 5 5 6 5 Class Distribution -------------------- 52% | Scavenger-Mutant 47% | Mutant Dominant Class ---------------- Mutant | -10/Materials Mutant | -10/Mines Scavenger-Mutant | -10/Exiles Scavenger-Mutant | -9/Mines Resources | -11 -10 -10 -10 -9 ----------- Run | Yrd Mat Min Exi Min Matter Collected 743 | 275 35 412 21 . Remotely . | . . . . . Salvage Created 594 | 64 49 444 . 37 Parts 32 | 5 4 20 . 3 Haulers Intercepted . | . . . . . Recyclers Shooed . | . . . . . Parts Field Recycled . | . . . . . Retrieved Matter . | . . . . . Parts Self-Destructed . | . . . . . Prevented . | . . . . . Parts Restored . | . . . . . Kills | -11 -10 -10 -10 -9 ------- Run | Yrd Mat Min Exi Min Combat Hostiles Destroyed 17 | . 3 12 . 2 Melee 1 | . . 1 . . Guns 14 | . 3 11 . . AOE 2 | . . . . 2 Classes Destroyed 5 | 2 1 2 . . Worker 1 | 1 . . . . Tunneler 1 | . . 1 . . Recycler 2 | 1 . 1 . . Swarmer 11 | . 3 6 . 2 Grunt 6 | . . 6 . . Best Kill Streak 3 | 1 3 3 . 2 Combat Bots Only 3 | . 3 3 . 2 Max Kills in Single Turn 2 | 1 1 1 . 2 Gunslinging . | . . . . . Exploded 2 | . . . . 2 Melee 1 | . . 1 . . Uniques/NPCs Destroyed . | . . . . . Combat | -11 -10 -10 -10 -9 -------- Run | Yrd Mat Min Exi Min Hostile Shots Fired 118 | . 16 98 . 4 Missed 33 | . 5 28 . . Hits 85 | . 11 70 . 4 Projectile 85 | . 11 70 . 4 Critical Strikes 1 | . . 1 . . Damage Taken 1044 | . 80 898 . 66 Core 269 | . 8 225 . 36 Absorbed by Shields . | . . . . . Redirected to Shielding 33 | . . 24 . 9 Core Remaining (%) 100 | 100 . . . . Volleys Fired 85 | 11 6 66 1 1 Largest 2 | 2 2 2 2 2 Hottest 120 | 60 60 120 60 80 Shots Fired 147 | 22 12 109 2 2 Gun 135 | 22 12 98 2 1 Cannon 1 | . . . . 1 Launcher . | . . . . . Special 11 | . . 11 . . Kinetic 70 | 11 6 51 1 1 Thermal 76 | 11 6 58 1 . Explosive . | . . . . . Electromagnetic 1 | . . . . 1 Robot Hit Streak 10 | 7 4 10 . 3 Robot Miss Streak 4 | 2 2 4 . . Penetration Max . | . . . . . Secondary Targets 6 | . 1 5 . . Max Gunslinging Chain 1 | . 1 1 . . Shots Hit Robots 80 | 16 7 55 . 2 Core Hits 38 | 3 4 29 . 2 Critical Kills . | . . . . . Critical Parts Destroyed 1 | . . 1 . . Critical Strikes 1 | . . 1 . . Destroy 1 | . . 1 . . Melee Attacks . | . . . . . Impact . | . . . . . Slashing . | . . . . . Piercing . | . . . . . Sneak Attacks . | . . . . . Combat Hostiles . | . . . . . Follow-up Attacks . | . . . . . Damage Inflicted 1297 | 152 80 712 . 353 Guns 938 | 152 80 697 . 9 Cannons 6 | . . . . 6 Explosions 338 | . . . . 338 Melee . | . . . . . Ramming 15 | . . 15 . . Kinetic 347 | 47 25 266 . 9 Thermal 591 | 105 55 431 . . Explosive . | . . . . . Electromagnetic 344 | . . . . 344 Impact . | . . . . . Slashing . | . . . . . Piercing . | . . . . . Highest Corruption . | . . . . . Average Corruption . | . . . . . Corruption Purged . | . . . . . Corruption Blocked . | . . . . . Overload Shots . | . . . . . Overflow Damage 24 | . . . . 24 Projectiles . | . . . . . Explosions 24 | . . . . 24 Melee . | . . . . . Knockbacks . | . . . . . Impact . | . . . . . Kinetic . | . . . . . Secondary . | . . . . . Self-Inflicted Damage 106 | . . 1 . 105 Shots 1 | . . . . 1 Rammed 10 | . . 10 . . Targets Rammed 11 | . . 11 . . Kicked . | . . . . . Crushed 1 | . . 1 . . Highest Temperature 599 | 20 40 599 28 . Average Temperature 143 | 13 21 162 18 . Received Heat Transfer 474 | . 6 468 . . Effects 16 | . . 16 . . Shutdowns 3 | . . 3 . . Energy Bleed 2 | . . 2 . . Interference 3 | . . 3 . . Matter Decay 3 | . . 3 . . Short Circuit 2 | . . 2 . . Damage (minor) 1 | . . 1 . . Damage (major) 2 | . . 2 . . Siege Activations . | . . . . . Martial Activations . | . . . . . Shielding Activations . | . . . . . Robots Disrupted . | . . . . . Combat Hostiles . | . . . . . Robots Corrupted . | . . . . . Combat Hostiles . | . . . . . Parts Fried 1 | . . . . 1 Impact Corruptions . | . . . . . Robots Melted . | . . . . . Combat Hostiles . | . . . . . Parts Melted 3 | . 1 2 . . Heat Transferred 1365 | 250 125 990 . . Parts Sabotaged . | . . . . . Parts Stolen . | . . . . . Parts Stripped . | . . . . . Power Chain Reactions . | . . . . . Latent Energy Used 200 | . . . . 200 LE Corruption 3 | . . . . 3 Alert | -11 -10 -10 -10 -9 ------- Run | Yrd Mat Min Exi Min Maximum Alert Level . | . . . . . Low Security (%) 100 | 100 100 100 . 100 Level 1 . | . . . . . Level 2 . | . . . . . Level 3 . | . . . . . Level 4 . | . . . . . Level 5 . | . . . . . High Security . | . . . . . Max Security . | . . . . . Peak Influence 63 | 5 60 63 . 23 Initial 3 | . . 3 . . Average 16 | . 25 18 . 7 Influence Increases 470 | 10 78 310 . 72 Destroy 0b10 Robot/C 360 | . 60 240 . 60 Destroy 0b10 Robot/NC 20 | 10 . 10 . . Destroy Leader 60 | . 10 50 . . Allied During Kill 10 | . . 1 . 9 Successful Hack 8 | . 8 . . . Destroy Structure 12 | . . 9 . 3 Influence Decreases 408 | 10 68 320 . 10 Entered New Map 7 | . . 7 . . Time Decay 341 | 10 68 263 . . Lost Part 60 | . . 50 . 10 Squads Dispatched . | . . . . . Investigation . | . . . . . Extermination . | . . . . . Reinforcement . | . . . . . Assault . | . . . . . Garrison . | . . . . . Intercept . | . . . . . Searches Triggered . | . . . . . Construction Impeded . | . . . . . Haulers Reinforced . | . . . . . Active Scanning Responses . | . . . . . Cargo Convoy Interrupts . | . . . . . Stealth | -11 -10 -10 -10 -9 --------- Run | Yrd Mat Min Exi Min Distress Signals . | . . . . . Communications Jammed . | . . . . . Distress Signals . | . . . . . Times Spotted 20 | . 4 12 . 4 Peak Tracking Total 4 | . 3 3 . 4 Tactical Retreats . | . . . . . Traps | -11 -10 -10 -10 -9 ------- Run | Yrd Mat Min Exi Min Traps Triggered . | . . . . . Indirectly . | . . . . . Trap Hack Attempts . | . . . . . Triggered . | . . . . . Disarmed . | . . . . . Reprogrammed . | . . . . . Reused . | . . . . . Traps Extracted . | . . . . . Installed . | . . . . . Triggered . | . . . . . Machines | -11 -10 -10 -10 -9 ---------- Run | Yrd Mat Min Exi Min Machines Disabled . | . . . . . Max in Single Turn . | . . . . . Machines Repaired . | . . . . . Machines Dismantled . | . . . . . Machines Sabotaged . | . . . . . Overloaded Fab Kills . | . . . . . Hacking | -11 -10 -10 -10 -9 --------- Run | Yrd Mat Min Exi Min Machines Accessed 6 | . 1 . 5 . Terminals 1 | . 1 . . . Fabricators . | . . . . . Repair Stations . | . . . . . Recycling Units . | . . . . . Scanalyzers . | . . . . . Garrison Access . | . . . . . Total Hacks 52 | . 2 . 50 . Successful 51 | . 1 . 50 . Failed 1 | . 1 . . . Catastrophic . | . . . . . Database Lockouts . | . . . . . Manual 4 | . 2 . 2 . Terminals 2 | . 2 . . . Fabricators . | . . . . . Repair Stations . | . . . . . Recycling Units . | . . . . . Scanalyzers . | . . . . . Garrison Access . | . . . . . Terminal Hacks 51 | . 1 . 50 . Record 49 | . . . 49 . Branch Access Points 1 | . 1 . . . Proto ID Catalog 1 | . . . 1 . Fabricator Hacks . | . . . . . Repair Station Hacks . | . . . . . Recycling Unit Hacks . | . . . . . Scanalyzer . | . . . . . Garrison Access Hacks . | . . . . . Unauthorized Hacks . | . . . . . Terminals . | . . . . . Fabricators . | . . . . . Repair Stations . | . . . . . Recycling Units . | . . . . . Scanalyzers . | . . . . . Garrison Access . | . . . . . Data Cores Recovered . | . . . . . Used . | . . . . . Hacking Detections . | . . . . . Full Trace Events . | . . . . . Feedback Events . | . . . . . Feedback Blocked . | . . . . . Robot Schematics Acquired . | . . . . . Robots Built . | . . . . . Authchips . | . . . . . Time . | . . . . . Total Robot Build Rating . | . . . . . Part Schematics Acquired . | . . . . . Parts Built . | . . . . . Authchips . | . . . . . Time . | . . . . . Total Part Build Rating . | . . . . . Part Studies Acquired . | . . . . . Parts Repaired . | . . . . . Time . | . . . . . Parts Recycled . | . . . . . Recycled Matter . | . . . . . Retrieved Matter . | . . . . . Retrieved Components . | . . . . . Parts Scanalyzed . | . . . . . Part Schematics Acquired . | . . . . . Parts Damaged . | . . . . . Bothacking | -11 -10 -10 -10 -9 ------------ Run | Yrd Mat Min Exi Min Used RIF Installer . | . . . . . Robots Hacked . | . . . . . Non-combat . | . . . . . Combat . | . . . . . Robot Hacks Applied . | . . . . . Relay Couplers Released . | . . . . . Fabnet Peak Effective % . | . . . . . Robots Rewired . | . . . . . Allies Hacked . | . . . . . Hacks Repelled . | . . . . . Allies | -11 -10 -10 -10 -9 -------- Run | Yrd Mat Min Exi Min Total Allies 4 | . . 4 . . Largest Group 4 | . . 4 3 3 Highest-Rated Group 71 | . . 71 40 40 Highest-Rated Ally 31 | . . 31 16 16 Total Orders . | . . . . . Ally Attacks 5 | . . . . 5 Total Damage 74 | . . . . 74 Kills 1 | . . . . 1 Allies Corrupted . | . . . . . Allies Melted . | . . . . . Intel | -11 -10 -10 -10 -9 ------- Run | Yrd Mat Min Exi Min Active Infowar (turns) . | . . . . . Robot Analysis Total . | . . . . . Derelict Logs Recovered 3 | . . 3 . . Drone Launches . | . . . . . Drone Recoveries . | . . . . . Exploration | -11 -10 -10 -10 -9 ------------- Run | Yrd Mat Min Exi Min Turns Passed 2085 | 166 149 952 815 3 Spaces Moved 2320 | 81 80 1320 839 . Core 9 | 5 . 4 . . Treads 286 | 76 80 130 . . Legs . | . . . . . Wheels . | . . . . . Hover . | . . . . . Flight 2025 | . . 1186 839 . Fastest Speed 37 | 50 160 37 37 . Average Speed 56 | 153 160 51 46 . Slowest Speed 280 | 160 160 280 197 . Overloaded Moves . | . . . . . Propulsion Burnouts . | . . . . . Robots Hopped 7 | . . 7 . . Potential Cave-ins . | . . . . . Cave-ins Triggered . | . . . . . Exploration Rate (%) 45 | 4 21 100 94 6 Regions Visited 4 Branch Regions 3 Pre-discovered Areas 2 | . . 1 1 . Known Exits Taken 2 | . 1 . 1 . Unknown Exits Taken 2 | 1 . 1 . . Scrap Searched 2 | . . 2 . . Spaces Dug 9 | . . 9 . . Terrain Destroyed 13 | . . 10 . 3 Melee . | . . . . . Projectile 10 | . . 10 . . AOE 3 | . . . . 3 Terrain Rammed . | . . . . . Walls Destroyed . | . . . . . Machines Disabled . | . . . . . Actions | -11 -10 -10 -10 -9 --------- Run | Yrd Mat Min Exi Min Total 2914 | 100 90 1460 1261 3 Wait 446 | . 2 34 410 . Move 2302 | 80 79 1305 838 . Hop 7 | . . 7 . . Pick Up 14 | 2 2 5 5 . Fast Attach 15 | 7 . 7 1 . Attach 3 | . . 2 . 1 Detach 1 | . . 1 . . Swap 13 | . 1 10 1 1 Drop 17 | . . 12 5 . Fire 85 | 11 6 66 1 1 Melee . | . . . . . Ram 6 | . . 6 . . Kick . | . . . . . Crush 5 | . . 5 . . Escape Stasis . | . . . . . Rewire . | . . . . . Trap . | . . . . . Miscellaneous . | . . . . . Route ------- -11/Scrapyard -10/Materials (discovered 2 exits: *Min x2) -10/Mines (discovered 4 exits: [*Mat x2] / *Exi / [*Sub]) -10/Exiles (discovered 2 exits: *Min x2) -9/Mines History --------- Turn | Location | Event 20 | -11/Scrapyard | Discovered new exit (range 16) 167 | -11/Scrapyard | Entered Materials 177 | -10/Materials | Identified exit to Mines 303 | -10/Materials | Build established: Mutant 316 | -10/Materials | Entered Mines 484 | -10/Mines | Discovered new exit (range 4) 572 | -10/Mines | Core integrity fell below 50% 663 | -10/Mines | Core integrity fell below 20% 716 | -10/Mines | Deemed a non-threat by the Exiles lab entrance 716 | -10/Mines | Discovered new exit (range 5) 743 | -10/Mines | Learned Materials trap positions 764 | -10/Mines | Discovered new exit (range 8) 818 | -10/Mines | Assisted by bots powering up and referring to "LRC-V3" 823 | -10/Mines | Discovered new exit (range 5) 930 | -10/Mines | Learned location of Zion (-6) 975 | -10/Mines | Received a Mining Laser from a helpful Derelict 1268 | -10/Mines | Entered Exiles 1268 | -10/Exiles | Accompanied by 3 allies 1269 | -10/Exiles | Identified exit to Mines 1287 | -10/Exiles | Build established: Scavenger-Mutant 1495 | -10/Exiles | Met 8R-AWN 1516 | -10/Exiles | Met EX-HEX 1546 | -10/Exiles | Visited The Gauntlet 1586 | -10/Exiles | Met EX-DEC 1638 | -10/Exiles | Met EX-BIN 1681 | -10/Exiles | Aligned with FarCom system 1682 | -10/Exiles | Given EX-Vault access code 1694 | -10/Exiles | Opened EX-Vault 1697 | -10/Exiles | Found Latent Energy Streamer 1709 | -10/Exiles | Warned to stay clear of 0b10 Research branches 2083 | -10/Exiles | Left Exiles lab with Latent Energy Streamer 2083 | -10/Exiles | Entered Mines 2083 | -9/Mines | Accompanied by 3 allies 2086 | -9/Mines | Destroyed self with Latent Energy Streamer Last Messages --------------- distributed network. Dropped Med. Matter Pod. Extracted 2 energy. Acquired Sml. Battery. Dropped Tractor Beam. Acquired Med. Storage Unit. Extracted 1 energy. Acquired Hcp. Battery. Extracted 20 matter. Extracted 1 energy. Acquired Sml. Battery. LOCATION=MINES GOAL=ESCAPE Receiving FarCom transmissions... S-10 Pest destroyed. Destroyed Lgt. Ion Engine. S-10 Pest destroyed. Flight Unit fried. S-10 Pest destroyed. Core Shielding destroyed. Map ----- +----------------------------------------------------+ | ????????????????????????????????? | | ????????????????????????????????? | | ????????????????????????????????? | | ????????????????????????????????? | | ????????????????????????????????? | | ????????????????????????????????? | | ????????????????????????????????? | | ????????????????????????????????? | | ????????????????????????????????? | | ????????????????????????????????? | | ????????????????????????????????? | | ????????????????????????????????? | | ????????????????????????????????? | | ????????????????????????????????? | | ????????????????????????????????? | | ????????????????????????????????? | | ????????????????????????????????? | | ????????????????????????????????? | | ????????????????????????????????? | | ????????????????????????????????? | | ?????????##?????????????????????? | | ????????? #?????????????????????? | | ?????#### #?????????????????????? | | ??## #;;; #######???????????????? | | ??# s %g #???????????????? | | ??#% =%[@ #???????????????? | | ??# """g """ #???????????????? | | ??# """ g """ #???????????????? | | ??# """ """ #???????????????? | | ??# ????????????????? | | ??# """ """ """ #???????????????? | | ??# """ """ """ #???????????????? | | ??? """ """ """ #???????????????? | | ???? ?????????????????? | | ?????#####?###??????????????????? | | ????????????????????????????????? | | ????????????????????????????????? | | ????????????????????????????????? | | ????????????????????????????????? | | ????????????????????????????????? | | ????????????????????????????????? | | ????????????????????????????????? | | ????????????????????????????????? | | ????????????????????????????????? | | ????????????????????????????????? | | | | | | | | | | | +----------------------------------------------------+ Best States ------------- Heat Dissipation 25 Energy Generation 14 Energy Capacity 160 Matter Stores 400 Matter Capacity 400 Sight Range 16 Terrain Scan Density 10 Core Shielding 20 Evasion (%) 62 Recoil Reduction 2 Item Schematics ----------------- None Robot Schematics ------------------ None Fabricated ------------ Nothing Repaired ---------- Nothing Studied --------- None Alien Tech Used ----------------- None Achievements -------------- I Have A Map? Sixth Sense Challenges ------------ None Game ------ Seed VampiricDeepPrototype Manual? 0 Play Time 00:23:20 Cumulative 46.7 hours Start 2025.10.27 @ 13:02:49 End 2025.10.27 @ 13:30:31 Sessions 1 Manual Loads 0 Difficulty Rogue Special Mode None Game No. 88 Rogue 85 Adventurer 0 Explorer 3 Win Type - Total 1 Types 1/0/0/0/0/0/0/0/0/0 Lore% 40 Gallery% 32 Achievement% 23 Wizard Run 0 Options --------- Layout 1 ASCII 0 Keyboard 1 Movement Numpad Keybinds 0 Fullscreen 1 Font 24/Smallcaps Map View 50x35 Zoom Use 0% Tactical HUD 0 Map Filters NONE Filters NONE Steam 1 RUN: 7780ac44-0f8e-46be-b49c-29902cba92ad